{"text_format":"3","workbook":"xlsx","n_sheets":6,"sheets":["Dashboard","Salg","Indtægter","Udgifter","Skat","Kategorier"],"not_rendered":{"images":1,"defined_names":34},"read":"whole","date_system":"1900"}

{"sheet":"Dashboard","index":0,"n_rows":19,"n_cols":8,"rows_kept":19,"merged":[[0,2,0,4],[0,6,3,7],[4,1,4,7]]}
[null,"Resultatopgørelse","For [måned eller år], der slutter [måned-dag-år]"]
[null,"Firmanavn","Angivet i tusindedele"]
[null,"Aktuel bruttoavance  [L-J]",{"$f":"IFERROR(IF(Samlet_bruttoresultat=0,\"-\",Samlet_bruttoresultat/Samlet_salgsomsætning),\"-\")","v":"-"}]
[null,"Aktuel fortjeneste ved salg [T/J]",{"$f":"IFERROR(IF(Nettooverskud=0,\"-\",Nettooverskud/Samlet_salgsomsætning),\"-\")","v":"-"}]
[null,"Rediger ikke i kategorierne i dette regnearket, da det kan ødelægge formlerne. Brug regnearket Kategori til at tilføje kategorier og opdatere de tilsvarende regneark med poster. Regnearket opdateres automatisk."]
[null,"Oversigt","Samlet forudgående periode","Samlet budget","Samlet aktuel\nperiode","Samlet aktuel periode som % af salg","Samlet % ændret ift. Forudgående periode","Samlet % ændret ift. budget"]
[null,"Samlet salgsomsætning  [J]",{"$f":"SUMIFS(Salgsomsætning_1[Forudgående periode],Salgsomsætning_1[Omsætningstype],\"Salgsomsætning\")","v":0},{"$f":"SUMIFS(Salgsomsætning_1[Budget],Salgsomsætning_1[Omsætningstype],\"Salgsomsætning\")","v":0},{"$f":"SUMIFS(Salgsomsætning_1[Aktuel periode],Salgsomsætning_1[Omsætningstype],\"Salgsomsætning\")","v":0},{"$f":"SUMIFS(Salgsomsætning_1[Aktuel periode som % af salg],Salgsomsætning_1[Omsætningstype],\"Salgsomsætning\")","v":{"v":0,"d":"0.00%"}},{"$f":"SUMIFS(Salgsomsætning_1[% ændret ift. Forudgående periode],Salgsomsætning_1[Omsætningstype],\"Salgsomsætning\")","v":{"v":0,"d":"0.00%"}},{"$f":"SUMIFS(Salgsomsætning_1[% ændret ift. budget],Salgsomsætning_1[Omsætningstype],\"Salgsomsætning\")","v":{"v":0,"d":"0.00%"}}]
[null,"Samlede salgsomkostninger  [K]",{"$f":"SUMIFS(Salgsomsætning_1[Forudgående periode],Salgsomsætning_1[Omsætningstype],\"Salgsomkostninger\")","v":0},{"$f":"SUMIFS(Salgsomsætning_1[Budget],Salgsomsætning_1[Omsætningstype],\"Salgsomkostninger\")","v":0},{"$f":"SUMIFS(Salgsomsætning_1[Aktuel periode],Salgsomsætning_1[Omsætningstype],\"Salgsomkostninger\")","v":0},{"$f":"SUMIFS(Salgsomsætning_1[Aktuel periode som % af salg],Salgsomsætning_1[Omsætningstype],\"Salgsomkostninger\")","v":{"v":0,"d":"0.00%"}},{"$f":"SUMIFS(Salgsomsætning_1[% ændret ift. Forudgående periode],Salgsomsætning_1[Omsætningstype],\"Salgsomkostninger\")","v":{"v":0,"d":"0.00%"}},{"$f":"SUMIFS(Salgsomsætning_1[% ændret ift. budget],Salgsomsætning_1[Omsætningstype],\"Salgsomkostninger\")","v":{"v":0,"d":"0.00%"}}]
[null,"Samlede salg- og marketingudgifter  [M]",{"$f":"SUMIFS(Driftsudgifter[Forudgående periode],Driftsudgifter[Udgiftstype],\"Salg og marketing\")","v":0},{"$f":"SUMIFS(Driftsudgifter[Budget],Driftsudgifter[Udgiftstype],\"Salg og marketing\")","v":0},{"$f":"SUMIFS(Driftsudgifter[Aktuel periode],Driftsudgifter[Udgiftstype],\"Salg og marketing\")","v":0},{"$f":"SUMIFS(Driftsudgifter[Aktuel periode som % af salg],Driftsudgifter[Udgiftstype],\"Salg og marketing\")","v":{"v":0,"d":"0.00%"}},{"$f":"SUMIFS(Driftsudgifter[% ændret ift. forudgående periode],Driftsudgifter[Udgiftstype],\"Salg og marketing\")","v":{"v":0,"d":"0.00%"}},{"$f":"SUMIFS(Driftsudgifter[% ændret ift. budget],Driftsudgifter[Udgiftstype],\"Salg og marketing\")","v":{"v":0,"d":"0.00%"}}]
[null,"Samlede forsknings- og udviklingsudgifter  [N]",{"$f":"SUMIFS(Driftsudgifter[Forudgående periode],Driftsudgifter[Udgiftstype],\"Forskning og udvikling\")","v":0},{"$f":"SUMIFS(Driftsudgifter[Budget],Driftsudgifter[Udgiftstype],\"Forskning og udvikling\")","v":0},{"$f":"SUMIFS(Driftsudgifter[Aktuel periode],Driftsudgifter[Udgiftstype],\"Forskning og udvikling\")","v":0},{"$f":"SUMIFS(Driftsudgifter[Aktuel periode som % af salg],Driftsudgifter[Udgiftstype],\"Forskning og udvikling\")","v":{"v":0,"d":"0.00%"}},{"$f":"SUMIFS(Driftsudgifter[% ændret ift. forudgående periode],Driftsudgifter[Udgiftstype],\"Forskning og udvikling\")","v":{"v":0,"d":"0.00%"}},{"$f":"SUMIFS(Driftsudgifter[% ændret ift. budget],Driftsudgifter[Udgiftstype],\"Forskning og udvikling\")","v":{"v":0,"d":"0.00%"}}]
[null,"Samlede generelle og administrative udgifter  [O]",{"$f":"SUMIFS(Driftsudgifter[Forudgående periode],Driftsudgifter[Udgiftstype],\"Generelt og administrativt\")","v":0},{"$f":"SUMIFS(Driftsudgifter[Budget],Driftsudgifter[Udgiftstype],\"Generelt og administrativt\")","v":0},{"$f":"SUMIFS(Driftsudgifter[Aktuel periode],Driftsudgifter[Udgiftstype],\"Generelt og administrativt\")","v":0},{"$f":"SUMIFS(Driftsudgifter[Aktuel periode som % af salg],Driftsudgifter[Udgiftstype],\"Generelt og administrativt\")","v":{"v":0,"d":"0.00%"}},{"$f":"SUMIFS(Driftsudgifter[% ændret ift. forudgående periode],Driftsudgifter[Udgiftstype],\"Generelt og administrativt\")","v":{"v":0,"d":"0.00%"}},{"$f":"SUMIFS(Driftsudgifter[% ændret ift. budget],Driftsudgifter[Udgiftstype],\"Generelt og administrativt\")","v":{"v":0,"d":"0.00%"}}]
[null,"Samlede øvrige driftsudgifter[P]",{"$f":"Driftsudgifter[[#Totals],[Forudgående periode]]-SUM(C9:C11)","v":0},{"$f":"Driftsudgifter[[#Totals],[Budget]]-SUM(D9:D11)","v":0},{"$f":"Driftsudgifter[[#Totals],[Aktuel periode]]-SUM(E9:E11)","v":0},{"$f":"Driftsudgifter[[#Totals],[Aktuel periode som % af salg]]-SUM(F9:F11)","v":{"v":0,"d":"0.00%"}},{"$f":"Driftsudgifter[[#Totals],[% ændret ift. forudgående periode]]-SUM(G9:G11)","v":{"v":0,"d":"0.00%"}},{"$f":"Driftsudgifter[[#Totals],[% ændret ift. budget]]-SUM(H9:H11)","v":{"v":0,"d":"0.00%"}}]
[null,"Øvrige indtægter  [S]",{"$f":"Indtægter[[#Totals],[Forudgående periode]]","v":0},{"$f":"Indtægter[[#Totals],[Budget]]","v":0},{"$f":"Indtægter[[#Totals],[Aktuel periode]]","v":0},{"$f":"Indtægter[[#Totals],[Aktuel periode som % af salg]]","v":{"v":0,"d":"0.00%"}},{"$f":"Indtægter[[#Totals],[% ændret ift. Forudgående periode]]","v":{"v":0,"d":"0.00%"}},{"$f":"Indtægter[[#Totals],[% ændret ift. budget]]","v":{"v":0,"d":"0.00%"}}]
[null,"Samlet skat  [T]",{"$f":"Skat[[#Totals],[Forudgående periode]]","v":0},{"$f":"Skat[[#Totals],[Budget]]","v":0},{"$f":"Skat[[#Totals],[Aktuel periode]]","v":0},{"$f":"Skat[[#Totals],[Aktuel periode som % af salg]]","v":{"v":0,"d":"0.00%"}},{"$f":"Skat[[#Totals],[% ændret ift. forudgående periode]]","v":{"v":0,"d":"0.00%"}},{"$f":"Skat[[#Totals],[% ændret ift. budget]]","v":{"v":0,"d":"0.00%"}}]
[]
[null,"Bruttoresultat  [L=J-K]",{"$f":"IFERROR(C7-C8,\"-\")","v":0},{"$f":"IFERROR(D7-D8,\"-\")","v":0},{"$f":"IFERROR(Samlet_salgsomsætning-Samlede_salgsomkostninger,\"-\")","v":0},{"$f":"IFERROR(IF(Samlet_salgsomsætning=0,\"0,00%\",Samlet_bruttoresultat/Samlet_salgsomsætning),\"-\")","v":"0,00%"},{"$f":"IFERROR(IF(C16=Samlet_bruttoresultat,0,IF(Samlet_bruttoresultat>C16,ABS((Samlet_bruttoresultat/C16)-1),IF(AND(Samlet_bruttoresultat<C16,C16<0),-((Samlet_bruttoresultat/C16)-1),(Samlet_bruttoresultat/C16)-1))),\"-\")","v":{"v":0,"d":"0.00%"}},{"$f":"IFERROR(IF(D16=Samlet_bruttoresultat,0,IF(Samlet_bruttoresultat>D16,ABS((Samlet_bruttoresultat/D16)-1),IF(AND(Samlet_bruttoresultat<D16,D16<0),-((Samlet_bruttoresultat/D16)-1),(Samlet_bruttoresultat/D16)-1))),\"-\")","v":{"v":0,"d":"0.00%"}}]
[null,"Samlede driftsudgifter  [Q=M+N+O+P]",{"$f":"IFERROR(C9+C10+C11+C12,\"-\")","v":0},{"$f":"IFERROR(D9+D10+D11+D12,\"-\")","v":0},{"$f":"IFERROR(Samlet_salg_og_marketing+Samlet_forskning_og_udvikling+Samlet_generelt_og_administrativt+Samlede_øvrige_udgifter,\"-\")","v":0},{"$f":"IFERROR(IF(Samlet_salgsomsætning=0,\"0,00%\",Samlede_driftsudgifter/Samlet_salgsomsætning),\"-\")","v":"0,00%"},{"$f":"IFERROR(IF(C17=Samlede_driftsudgifter,0,IF(Samlede_driftsudgifter>C17,ABS((Samlede_driftsudgifter/C17)-1),IF(AND(Samlede_driftsudgifter<C17,C17<0),-((Samlede_driftsudgifter/C17)-1),(Samlede_driftsudgifter/C17)-1))),\"-\")","v":{"v":0,"d":"0.00%"}},{"$f":"IFERROR(IF(D17=Samlede_driftsudgifter,0,IF(Samlede_driftsudgifter>D17,ABS((Samlede_driftsudgifter/D17)-1),IF(AND(Samlede_driftsudgifter<D17,D17<0),-((Samlede_driftsudgifter/D17)-1),(Samlede_driftsudgifter/D17)-1))),\"-\")","v":{"v":0,"d":"0.00%"}}]
[null,"Indtægter fra driften  [R=L-Q]",{"$f":"IFERROR(C16-C17,\"-\")","v":0},{"$f":"IFERROR(D16-D17,\"-\")","v":0},{"$f":"IFERROR(Samlet_bruttoresultat-Samlede_driftsudgifter,\"-\")","v":0},{"$f":"IFERROR(IF(Samlet_salgsomsætning=0,\"0,00%\",Samlede_indtægter_fra_driften/Samlet_salgsomsætning),\"-\")","v":"0,00%"},{"$f":"IFERROR(IF(C18=Samlede_indtægter_fra_driften,0,IF(Samlede_indtægter_fra_driften>C18,ABS((Samlede_indtægter_fra_driften/C18)-1),IF(AND(Samlede_indtægter_fra_driften<C18,C18<0),-((Samlede_indtægter_fra_driften/C18)-1),(Samlede_indtægter_fra_driften/C18)-1))),\"-\")","v":{"v":0,"d":"0.00%"}},{"$f":"IFERROR(IF(D18=Samlede_indtægter_fra_driften,0,IF(Samlede_indtægter_fra_driften>D18,ABS((Samlede_indtægter_fra_driften/D18)-1),IF(AND(Samlede_indtægter_fra_driften<D18,D18<0),-((Samlede_indtægter_fra_driften/D18)-1),(Samlede_indtægter_fra_driften/D18)-1))),\"-\")","v":{"v":0,"d":"0.00%"}}]
[null,"Nettooverskud  [U=R+S-T]",{"$f":"IFERROR(C18+C13-C14,\"-\")","v":0},{"$f":"IFERROR(D18+D13-D14,\"-\")","v":0},{"$f":"Samlede_indtægter_fra_driften+Samlede_øvrige_indtægter-Samlet_skat","v":0},{"$f":"IFERROR(IF(Samlet_salgsomsætning=0,\"0,00%\",Nettooverskud/Samlet_salgsomsætning),\"-\")","v":"0,00%"},{"$f":"IFERROR(IF(C19=Nettooverskud,0,IF(Nettooverskud>C19,ABS((Nettooverskud/C19)-1),IF(AND(Nettooverskud<C19,C19<0),-((Nettooverskud/C19)-1),(Nettooverskud/C19)-1))),\"-\")","v":{"v":0,"d":"0.00%"}},{"$f":"IFERROR(IF(D19=Nettooverskud,0,IF(Nettooverskud>D19,ABS((Nettooverskud/D19)-1),IF(AND(Nettooverskud<D19,D19<0),-((Nettooverskud/D19)-1),(Nettooverskud/D19)-1))),\"-\")","v":{"v":0,"d":"0.00%"}}]

{"sheet":"Salg","index":1,"n_rows":13,"n_cols":9,"rows_kept":13,"merged":[[0,7,2,8]]}
[null,{"$f":"Projektmappe_titel","v":"Resultatopgørelse"}]
[null,{"$f":"Firmanavn","v":"Firmanavn"},"Angivet i tusindedele"]
[null,"Salgsomsætning",{"$f":"IFERROR(Salgsomsætning,\"-\")","v":0}]
[null,"Omsætningstype","Beskrivelse","Forudgående periode","Budget","Aktuel periode","Aktuel periode som % af salg","% ændret ift. Forudgående periode","% ændret ift. budget"]
[null,"Salgsomsætning","Produkt/tjeneste 1",{"$nulls":3},{"$f":"IFERROR(IF(Salgsomsætning_1[[#Headers],[Forudgående periode]]=0,\"-\",Salgsomsætning_1[Forudgående periode]/Salgsomsætning),\"-\")","v":"-"},{"$f":"IFERROR(IF(Salgsomsætning_1[[#This Row],[Forudgående periode]]=Salgsomsætning_1[[#This Row],[Aktuel periode]],0,IF(Salgsomsætning_1[[#This Row],[Aktuel periode]]>Salgsomsætning_1[[#This Row],[Forudgående periode]],ABS((Salgsomsætning_1[[#This Row],[Aktuel periode]]/Salgsomsætning_1[[#This Row],[Forudgående periode]])-1),IF(AND(Salgsomsætning_1[[#This Row],[Aktuel periode]]<Salgsomsætning_1[[#This Row],[Forudgående periode]],Salgsomsætning_1[[#This Row],[Forudgående periode]]<0),-((Salgsomsætning_1[[#This Row],[Aktuel periode]]/Salgsomsætning_1[[#This Row],[Forudgående periode]])-1),(Salgsomsætning_1[[#This Row],[Aktuel periode]]/Salgsomsætning_1[[#This Row],[Forudgående periode]])-1))),\"-\")","v":{"v":0,"d":"0.00%"}},{"$f":"IFERROR(IF(Salgsomsætning_1[[#This Row],[Budget]]=Salgsomsætning_1[[#This Row],[Aktuel periode]],0,IF(Salgsomsætning_1[[#This Row],[Aktuel periode]]>Salgsomsætning_1[[#This Row],[Budget]],ABS((Salgsomsætning_1[[#This Row],[Aktuel periode]]/Salgsomsætning_1[[#This Row],[Budget]])-1),IF(AND(Salgsomsætning_1[[#This Row],[Aktuel periode]]<Salgsomsætning_1[[#This Row],[Budget]],Salgsomsætning_1[[#This Row],[Budget]]<0),-((Salgsomsætning_1[[#This Row],[Aktuel periode]]/Salgsomsætning_1[[#This Row],[Budget]])-1),(Salgsomsætning_1[[#This Row],[Aktuel periode]]/Salgsomsætning_1[[#This Row],[Budget]])-1))),\"-\")","v":{"v":0,"d":"0.00%"}}]
[null,"Salgsomsætning","Produkt/tjeneste 2",{"$nulls":3},{"$f":"IFERROR(IF(Salgsomsætning_1[[#Headers],[Forudgående periode]]=0,\"-\",Salgsomsætning_1[Forudgående periode]/Salgsomsætning),\"-\")","v":"-"},{"$f":"IFERROR(IF(Salgsomsætning_1[[#This Row],[Forudgående periode]]=Salgsomsætning_1[[#This Row],[Aktuel periode]],0,IF(Salgsomsætning_1[[#This Row],[Aktuel periode]]>Salgsomsætning_1[[#This Row],[Forudgående periode]],ABS((Salgsomsætning_1[[#This Row],[Aktuel periode]]/Salgsomsætning_1[[#This Row],[Forudgående periode]])-1),IF(AND(Salgsomsætning_1[[#This Row],[Aktuel periode]]<Salgsomsætning_1[[#This Row],[Forudgående periode]],Salgsomsætning_1[[#This Row],[Forudgående periode]]<0),-((Salgsomsætning_1[[#This Row],[Aktuel periode]]/Salgsomsætning_1[[#This Row],[Forudgående periode]])-1),(Salgsomsætning_1[[#This Row],[Aktuel periode]]/Salgsomsætning_1[[#This Row],[Forudgående periode]])-1))),\"-\")","v":{"v":0,"d":"0.00%"}},{"$f":"IFERROR(IF(Salgsomsætning_1[[#This Row],[Budget]]=Salgsomsætning_1[[#This Row],[Aktuel periode]],0,IF(Salgsomsætning_1[[#This Row],[Aktuel periode]]>Salgsomsætning_1[[#This Row],[Budget]],ABS((Salgsomsætning_1[[#This Row],[Aktuel periode]]/Salgsomsætning_1[[#This Row],[Budget]])-1),IF(AND(Salgsomsætning_1[[#This Row],[Aktuel periode]]<Salgsomsætning_1[[#This Row],[Budget]],Salgsomsætning_1[[#This Row],[Budget]]<0),-((Salgsomsætning_1[[#This Row],[Aktuel periode]]/Salgsomsætning_1[[#This Row],[Budget]])-1),(Salgsomsætning_1[[#This Row],[Aktuel periode]]/Salgsomsætning_1[[#This Row],[Budget]])-1))),\"-\")","v":{"v":0,"d":"0.00%"}}]
[null,"Salgsomsætning","Produkt/tjeneste 3",{"$nulls":3},{"$f":"IFERROR(IF(Salgsomsætning_1[[#Headers],[Forudgående periode]]=0,\"-\",Salgsomsætning_1[Forudgående periode]/Salgsomsætning),\"-\")","v":"-"},{"$f":"IFERROR(IF(Salgsomsætning_1[[#This Row],[Forudgående periode]]=Salgsomsætning_1[[#This Row],[Aktuel periode]],0,IF(Salgsomsætning_1[[#This Row],[Aktuel periode]]>Salgsomsætning_1[[#This Row],[Forudgående periode]],ABS((Salgsomsætning_1[[#This Row],[Aktuel periode]]/Salgsomsætning_1[[#This Row],[Forudgående periode]])-1),IF(AND(Salgsomsætning_1[[#This Row],[Aktuel periode]]<Salgsomsætning_1[[#This Row],[Forudgående periode]],Salgsomsætning_1[[#This Row],[Forudgående periode]]<0),-((Salgsomsætning_1[[#This Row],[Aktuel periode]]/Salgsomsætning_1[[#This Row],[Forudgående periode]])-1),(Salgsomsætning_1[[#This Row],[Aktuel periode]]/Salgsomsætning_1[[#This Row],[Forudgående periode]])-1))),\"-\")","v":{"v":0,"d":"0.00%"}},{"$f":"IFERROR(IF(Salgsomsætning_1[[#This Row],[Budget]]=Salgsomsætning_1[[#This Row],[Aktuel periode]],0,IF(Salgsomsætning_1[[#This Row],[Aktuel periode]]>Salgsomsætning_1[[#This Row],[Budget]],ABS((Salgsomsætning_1[[#This Row],[Aktuel periode]]/Salgsomsætning_1[[#This Row],[Budget]])-1),IF(AND(Salgsomsætning_1[[#This Row],[Aktuel periode]]<Salgsomsætning_1[[#This Row],[Budget]],Salgsomsætning_1[[#This Row],[Budget]]<0),-((Salgsomsætning_1[[#This Row],[Aktuel periode]]/Salgsomsætning_1[[#This Row],[Budget]])-1),(Salgsomsætning_1[[#This Row],[Aktuel periode]]/Salgsomsætning_1[[#This Row],[Budget]])-1))),\"-\")","v":{"v":0,"d":"0.00%"}}]
[null,"Salgsomsætning","Produkt/tjeneste 4",{"$nulls":3},{"$f":"IFERROR(IF(Salgsomsætning_1[[#Headers],[Forudgående periode]]=0,\"-\",Salgsomsætning_1[Forudgående periode]/Salgsomsætning),\"-\")","v":"-"},{"$f":"IFERROR(IF(Salgsomsætning_1[[#This Row],[Forudgående periode]]=Salgsomsætning_1[[#This Row],[Aktuel periode]],0,IF(Salgsomsætning_1[[#This Row],[Aktuel periode]]>Salgsomsætning_1[[#This Row],[Forudgående periode]],ABS((Salgsomsætning_1[[#This Row],[Aktuel periode]]/Salgsomsætning_1[[#This Row],[Forudgående periode]])-1),IF(AND(Salgsomsætning_1[[#This Row],[Aktuel periode]]<Salgsomsætning_1[[#This Row],[Forudgående periode]],Salgsomsætning_1[[#This Row],[Forudgående periode]]<0),-((Salgsomsætning_1[[#This Row],[Aktuel periode]]/Salgsomsætning_1[[#This Row],[Forudgående periode]])-1),(Salgsomsætning_1[[#This Row],[Aktuel periode]]/Salgsomsætning_1[[#This Row],[Forudgående periode]])-1))),\"-\")","v":{"v":0,"d":"0.00%"}},{"$f":"IFERROR(IF(Salgsomsætning_1[[#This Row],[Budget]]=Salgsomsætning_1[[#This Row],[Aktuel periode]],0,IF(Salgsomsætning_1[[#This Row],[Aktuel periode]]>Salgsomsætning_1[[#This Row],[Budget]],ABS((Salgsomsætning_1[[#This Row],[Aktuel periode]]/Salgsomsætning_1[[#This Row],[Budget]])-1),IF(AND(Salgsomsætning_1[[#This Row],[Aktuel periode]]<Salgsomsætning_1[[#This Row],[Budget]],Salgsomsætning_1[[#This Row],[Budget]]<0),-((Salgsomsætning_1[[#This Row],[Aktuel periode]]/Salgsomsætning_1[[#This Row],[Budget]])-1),(Salgsomsætning_1[[#This Row],[Aktuel periode]]/Salgsomsætning_1[[#This Row],[Budget]])-1))),\"-\")","v":{"v":0,"d":"0.00%"}}]
[null,"Salgsomkostninger","Produkt/tjeneste 1",{"$nulls":3},{"$f":"IFERROR(IF(Salgsomsætning_1[[#Headers],[Forudgående periode]]=0,\"-\",Salgsomsætning_1[Forudgående periode]/Salgsomsætning),\"-\")","v":"-"},{"$f":"IFERROR(IF(Salgsomsætning_1[[#This Row],[Forudgående periode]]=Salgsomsætning_1[[#This Row],[Aktuel periode]],0,IF(Salgsomsætning_1[[#This Row],[Aktuel periode]]>Salgsomsætning_1[[#This Row],[Forudgående periode]],ABS((Salgsomsætning_1[[#This Row],[Aktuel periode]]/Salgsomsætning_1[[#This Row],[Forudgående periode]])-1),IF(AND(Salgsomsætning_1[[#This Row],[Aktuel periode]]<Salgsomsætning_1[[#This Row],[Forudgående periode]],Salgsomsætning_1[[#This Row],[Forudgående periode]]<0),-((Salgsomsætning_1[[#This Row],[Aktuel periode]]/Salgsomsætning_1[[#This Row],[Forudgående periode]])-1),(Salgsomsætning_1[[#This Row],[Aktuel periode]]/Salgsomsætning_1[[#This Row],[Forudgående periode]])-1))),\"-\")","v":{"v":0,"d":"0.00%"}},{"$f":"IFERROR(IF(Salgsomsætning_1[[#This Row],[Budget]]=Salgsomsætning_1[[#This Row],[Aktuel periode]],0,IF(Salgsomsætning_1[[#This Row],[Aktuel periode]]>Salgsomsætning_1[[#This Row],[Budget]],ABS((Salgsomsætning_1[[#This Row],[Aktuel periode]]/Salgsomsætning_1[[#This Row],[Budget]])-1),IF(AND(Salgsomsætning_1[[#This Row],[Aktuel periode]]<Salgsomsætning_1[[#This Row],[Budget]],Salgsomsætning_1[[#This Row],[Budget]]<0),-((Salgsomsætning_1[[#This Row],[Aktuel periode]]/Salgsomsætning_1[[#This Row],[Budget]])-1),(Salgsomsætning_1[[#This Row],[Aktuel periode]]/Salgsomsætning_1[[#This Row],[Budget]])-1))),\"-\")","v":{"v":0,"d":"0.00%"}}]
[null,"Salgsomkostninger","Produkt/tjeneste 2",{"$nulls":3},{"$f":"IFERROR(IF(Salgsomsætning_1[[#Headers],[Forudgående periode]]=0,\"-\",Salgsomsætning_1[Forudgående periode]/Salgsomsætning),\"-\")","v":"-"},{"$f":"IFERROR(IF(Salgsomsætning_1[[#This Row],[Forudgående periode]]=Salgsomsætning_1[[#This Row],[Aktuel periode]],0,IF(Salgsomsætning_1[[#This Row],[Aktuel periode]]>Salgsomsætning_1[[#This Row],[Forudgående periode]],ABS((Salgsomsætning_1[[#This Row],[Aktuel periode]]/Salgsomsætning_1[[#This Row],[Forudgående periode]])-1),IF(AND(Salgsomsætning_1[[#This Row],[Aktuel periode]]<Salgsomsætning_1[[#This Row],[Forudgående periode]],Salgsomsætning_1[[#This Row],[Forudgående periode]]<0),-((Salgsomsætning_1[[#This Row],[Aktuel periode]]/Salgsomsætning_1[[#This Row],[Forudgående periode]])-1),(Salgsomsætning_1[[#This Row],[Aktuel periode]]/Salgsomsætning_1[[#This Row],[Forudgående periode]])-1))),\"-\")","v":{"v":0,"d":"0.00%"}},{"$f":"IFERROR(IF(Salgsomsætning_1[[#This Row],[Budget]]=Salgsomsætning_1[[#This Row],[Aktuel periode]],0,IF(Salgsomsætning_1[[#This Row],[Aktuel periode]]>Salgsomsætning_1[[#This Row],[Budget]],ABS((Salgsomsætning_1[[#This Row],[Aktuel periode]]/Salgsomsætning_1[[#This Row],[Budget]])-1),IF(AND(Salgsomsætning_1[[#This Row],[Aktuel periode]]<Salgsomsætning_1[[#This Row],[Budget]],Salgsomsætning_1[[#This Row],[Budget]]<0),-((Salgsomsætning_1[[#This Row],[Aktuel periode]]/Salgsomsætning_1[[#This Row],[Budget]])-1),(Salgsomsætning_1[[#This Row],[Aktuel periode]]/Salgsomsætning_1[[#This Row],[Budget]])-1))),\"-\")","v":{"v":0,"d":"0.00%"}}]
[null,"Salgsomkostninger","Produkt/tjeneste 3",{"$nulls":3},{"$f":"IFERROR(IF(Salgsomsætning_1[[#Headers],[Forudgående periode]]=0,\"-\",Salgsomsætning_1[Forudgående periode]/Salgsomsætning),\"-\")","v":"-"},{"$f":"IFERROR(IF(Salgsomsætning_1[[#This Row],[Forudgående periode]]=Salgsomsætning_1[[#This Row],[Aktuel periode]],0,IF(Salgsomsætning_1[[#This Row],[Aktuel periode]]>Salgsomsætning_1[[#This Row],[Forudgående periode]],ABS((Salgsomsætning_1[[#This Row],[Aktuel periode]]/Salgsomsætning_1[[#This Row],[Forudgående periode]])-1),IF(AND(Salgsomsætning_1[[#This Row],[Aktuel periode]]<Salgsomsætning_1[[#This Row],[Forudgående periode]],Salgsomsætning_1[[#This Row],[Forudgående periode]]<0),-((Salgsomsætning_1[[#This Row],[Aktuel periode]]/Salgsomsætning_1[[#This Row],[Forudgående periode]])-1),(Salgsomsætning_1[[#This Row],[Aktuel periode]]/Salgsomsætning_1[[#This Row],[Forudgående periode]])-1))),\"-\")","v":{"v":0,"d":"0.00%"}},{"$f":"IFERROR(IF(Salgsomsætning_1[[#This Row],[Budget]]=Salgsomsætning_1[[#This Row],[Aktuel periode]],0,IF(Salgsomsætning_1[[#This Row],[Aktuel periode]]>Salgsomsætning_1[[#This Row],[Budget]],ABS((Salgsomsætning_1[[#This Row],[Aktuel periode]]/Salgsomsætning_1[[#This Row],[Budget]])-1),IF(AND(Salgsomsætning_1[[#This Row],[Aktuel periode]]<Salgsomsætning_1[[#This Row],[Budget]],Salgsomsætning_1[[#This Row],[Budget]]<0),-((Salgsomsætning_1[[#This Row],[Aktuel periode]]/Salgsomsætning_1[[#This Row],[Budget]])-1),(Salgsomsætning_1[[#This Row],[Aktuel periode]]/Salgsomsætning_1[[#This Row],[Budget]])-1))),\"-\")","v":{"v":0,"d":"0.00%"}}]
[null,"Salgsomkostninger","Produkt/tjeneste 4",{"$nulls":3},{"$f":"IFERROR(IF(Salgsomsætning_1[[#Headers],[Forudgående periode]]=0,\"-\",Salgsomsætning_1[Forudgående periode]/Salgsomsætning),\"-\")","v":"-"},{"$f":"IFERROR(IF(Salgsomsætning_1[[#This Row],[Forudgående periode]]=Salgsomsætning_1[[#This Row],[Aktuel periode]],0,IF(Salgsomsætning_1[[#This Row],[Aktuel periode]]>Salgsomsætning_1[[#This Row],[Forudgående periode]],ABS((Salgsomsætning_1[[#This Row],[Aktuel periode]]/Salgsomsætning_1[[#This Row],[Forudgående periode]])-1),IF(AND(Salgsomsætning_1[[#This Row],[Aktuel periode]]<Salgsomsætning_1[[#This Row],[Forudgående periode]],Salgsomsætning_1[[#This Row],[Forudgående periode]]<0),-((Salgsomsætning_1[[#This Row],[Aktuel periode]]/Salgsomsætning_1[[#This Row],[Forudgående periode]])-1),(Salgsomsætning_1[[#This Row],[Aktuel periode]]/Salgsomsætning_1[[#This Row],[Forudgående periode]])-1))),\"-\")","v":{"v":0,"d":"0.00%"}},{"$f":"IFERROR(IF(Salgsomsætning_1[[#This Row],[Budget]]=Salgsomsætning_1[[#This Row],[Aktuel periode]],0,IF(Salgsomsætning_1[[#This Row],[Aktuel periode]]>Salgsomsætning_1[[#This Row],[Budget]],ABS((Salgsomsætning_1[[#This Row],[Aktuel periode]]/Salgsomsætning_1[[#This Row],[Budget]])-1),IF(AND(Salgsomsætning_1[[#This Row],[Aktuel periode]]<Salgsomsætning_1[[#This Row],[Budget]],Salgsomsætning_1[[#This Row],[Budget]]<0),-((Salgsomsætning_1[[#This Row],[Aktuel periode]]/Salgsomsætning_1[[#This Row],[Budget]])-1),(Salgsomsætning_1[[#This Row],[Aktuel periode]]/Salgsomsætning_1[[#This Row],[Budget]])-1))),\"-\")","v":{"v":0,"d":"0.00%"}}]
[null,"Samlet salgsomsætning",null,{"$f":"SUBTOTAL(109,Salgsomsætning_1[Forudgående periode])","v":0},{"$f":"SUBTOTAL(109,Salgsomsætning_1[Budget])","v":0},{"$f":"SUBTOTAL(109,Salgsomsætning_1[Aktuel periode])","v":0},{"$f":"SUBTOTAL(109,Salgsomsætning_1[Aktuel periode som % af salg])","v":{"v":0,"d":"0.00%"}},{"$f":"SUBTOTAL(109,Salgsomsætning_1[% ændret ift. Forudgående periode])","v":{"v":0,"d":"0.00%"}},{"$f":"SUBTOTAL(109,Salgsomsætning_1[% ændret ift. budget])","v":{"v":0,"d":"0.00%"}}]

{"sheet":"Indtægter","index":2,"n_rows":7,"n_cols":9,"rows_kept":7,"merged":[[0,7,2,8]]}
[null,{"$f":"Projektmappe_titel","v":"Resultatopgørelse"}]
[null,{"$f":"Firmanavn","v":"Firmanavn"},"Angivet i tusindedele"]
[null,"Indtægter",{"$f":"IFERROR(Indtægter[[#Totals],[Aktuel periode]],\"-\")","v":0}]
[null,"Indtægtstype","Beskrivelse","Forudgående periode","Budget","Aktuel periode","Aktuel periode som % af salg","% ændret ift. Forudgående periode","% ændret ift. budget"]
[null,"Indtægter","Øvrige indtægter",{"$nulls":3},{"$f":"IFERROR(IF(Salgsomsætning=0,\"-\",Indtægter[Aktuel periode]/Salgsomsætning),\"-\")","v":"-"},{"$f":"IFERROR(IF(Indtægter[[#This Row],[Forudgående periode]]=Indtægter[[#This Row],[Aktuel periode]],0,IF(Indtægter[[#This Row],[Aktuel periode]]>Indtægter[[#This Row],[Forudgående periode]],ABS((Indtægter[[#This Row],[Aktuel periode]]/Indtægter[[#This Row],[Forudgående periode]])-1),IF(AND(Indtægter[[#This Row],[Aktuel periode]]<Indtægter[[#This Row],[Forudgående periode]],Indtægter[[#This Row],[Forudgående periode]]<0),-((Indtægter[[#This Row],[Aktuel periode]]/Indtægter[[#This Row],[Forudgående periode]])-1),(Indtægter[[#This Row],[Aktuel periode]]/Indtægter[[#This Row],[Forudgående periode]])-1))),\"-\")","v":{"v":0,"d":"0.00%"}},{"$f":"IFERROR(IF(Indtægter[[#This Row],[Budget]]=Indtægter[[#This Row],[Aktuel periode]],0,IF(Indtægter[[#This Row],[Aktuel periode]]>Indtægter[[#This Row],[Budget]],ABS((Indtægter[[#This Row],[Aktuel periode]]/Indtægter[[#This Row],[Budget]])-1),IF(AND(Indtægter[[#This Row],[Aktuel periode]]<Indtægter[[#This Row],[Budget]],Indtægter[[#This Row],[Budget]]<0),-((Indtægter[[#This Row],[Aktuel periode]]/Indtægter[[#This Row],[Budget]])-1),(Indtægter[[#This Row],[Aktuel periode]]/Indtægter[[#This Row],[Budget]])-1))),\"-\")","v":{"v":0,"d":"0.00%"}}]
[{"$nulls":6},{"$f":"IFERROR(IF(Salgsomsætning=0,\"-\",Indtægter[Aktuel periode]/Salgsomsætning),\"-\")","v":"-"},{"$f":"IFERROR(IF(Indtægter[[#This Row],[Forudgående periode]]=Indtægter[[#This Row],[Aktuel periode]],0,IF(Indtægter[[#This Row],[Aktuel periode]]>Indtægter[[#This Row],[Forudgående periode]],ABS((Indtægter[[#This Row],[Aktuel periode]]/Indtægter[[#This Row],[Forudgående periode]])-1),IF(AND(Indtægter[[#This Row],[Aktuel periode]]<Indtægter[[#This Row],[Forudgående periode]],Indtægter[[#This Row],[Forudgående periode]]<0),-((Indtægter[[#This Row],[Aktuel periode]]/Indtægter[[#This Row],[Forudgående periode]])-1),(Indtægter[[#This Row],[Aktuel periode]]/Indtægter[[#This Row],[Forudgående periode]])-1))),\"-\")","v":{"v":0,"d":"0.00%"}},{"$f":"IFERROR(IF(Indtægter[[#This Row],[Budget]]=Indtægter[[#This Row],[Aktuel periode]],0,IF(Indtægter[[#This Row],[Aktuel periode]]>Indtægter[[#This Row],[Budget]],ABS((Indtægter[[#This Row],[Aktuel periode]]/Indtægter[[#This Row],[Budget]])-1),IF(AND(Indtægter[[#This Row],[Aktuel periode]]<Indtægter[[#This Row],[Budget]],Indtægter[[#This Row],[Budget]]<0),-((Indtægter[[#This Row],[Aktuel periode]]/Indtægter[[#This Row],[Budget]])-1),(Indtægter[[#This Row],[Aktuel periode]]/Indtægter[[#This Row],[Budget]])-1))),\"-\")","v":{"v":0,"d":"0.00%"}}]
[null,"Samlet salgsindtægt",null,{"$f":"SUBTOTAL(109,Indtægter[Forudgående periode])","v":0},{"$f":"SUBTOTAL(109,Indtægter[Budget])","v":0},{"$f":"SUBTOTAL(109,Indtægter[Aktuel periode])","v":0},{"$f":"SUBTOTAL(109,Indtægter[Aktuel periode som % af salg])","v":{"v":0,"d":"0.00%"}},{"$f":"SUBTOTAL(109,Indtægter[% ændret ift. Forudgående periode])","v":{"v":0,"d":"0.00%"}},{"$f":"SUBTOTAL(109,Indtægter[% ændret ift. budget])","v":{"v":0,"d":"0.00%"}}]

{"sheet":"Udgifter","index":3,"n_rows":25,"n_cols":9,"rows_kept":25,"merged":[[0,7,2,8]]}
[null,{"$f":"Projektmappe_titel","v":"Resultatopgørelse"}]
[null,{"$f":"Firmanavn","v":"Firmanavn"},"Angivet i tusindedele"]
[null,"Driftsudgifter",{"$f":"IFERROR(Driftsudgifter[[#Totals],[Aktuel periode]],\"-\")","v":0}]
[null,"Udgiftstype","Beskrivelse","Forudgående periode","Budget","Aktuel periode","Aktuel periode som % af salg","% ændret ift. forudgående periode","% ændret ift. budget"]
[null,"Salg og marketing","Reklamer",{"$nulls":3},{"$f":"IFERROR(IF(Salgsomsætning=0,\"-\",Driftsudgifter[Aktuel periode]/Salgsomsætning),\"-\")","v":"-"},{"$f":"IFERROR(IF(Driftsudgifter[[#This Row],[Forudgående periode]]=Driftsudgifter[[#This Row],[Aktuel periode]],0,IF(Driftsudgifter[[#This Row],[Aktuel periode]]>Driftsudgifter[[#This Row],[Forudgående periode]],ABS((Driftsudgifter[[#This Row],[Aktuel periode]]/Driftsudgifter[[#This Row],[Forudgående periode]])-1),IF(AND(Driftsudgifter[[#This Row],[Aktuel periode]]<Driftsudgifter[[#This Row],[Forudgående periode]],Driftsudgifter[[#This Row],[Forudgående periode]]<0),-((Driftsudgifter[[#This Row],[Aktuel periode]]/Driftsudgifter[[#This Row],[Forudgående periode]])-1),(Driftsudgifter[[#This Row],[Aktuel periode]]/Driftsudgifter[[#This Row],[Forudgående periode]])-1))),\"-\")","v":{"v":0,"d":"0.00%"}},{"$f":"IFERROR(IF(Driftsudgifter[[#This Row],[Budget]]=Driftsudgifter[[#This Row],[Aktuel periode]],0,IF(Driftsudgifter[[#This Row],[Aktuel periode]]>Driftsudgifter[[#This Row],[Budget]],ABS((Driftsudgifter[[#This Row],[Aktuel periode]]/Driftsudgifter[[#This Row],[Budget]])-1),IF(AND(Driftsudgifter[[#This Row],[Aktuel periode]]<Driftsudgifter[[#This Row],[Budget]],Driftsudgifter[[#This Row],[Budget]]<0),-((Driftsudgifter[[#This Row],[Aktuel periode]]/Driftsudgifter[[#This Row],[Budget]])-1),(Driftsudgifter[[#This Row],[Aktuel periode]]/Driftsudgifter[[#This Row],[Budget]])-1))),\"-\")","v":{"v":0,"d":"0.00%"}}]
[null,"Salg og marketing","Direkte marketing",{"$nulls":3},{"$f":"IFERROR(IF(Salgsomsætning=0,\"-\",Driftsudgifter[Aktuel periode]/Salgsomsætning),\"-\")","v":"-"},{"$f":"IFERROR(IF(Driftsudgifter[[#This Row],[Forudgående periode]]=Driftsudgifter[[#This Row],[Aktuel periode]],0,IF(Driftsudgifter[[#This Row],[Aktuel periode]]>Driftsudgifter[[#This Row],[Forudgående periode]],ABS((Driftsudgifter[[#This Row],[Aktuel periode]]/Driftsudgifter[[#This Row],[Forudgående periode]])-1),IF(AND(Driftsudgifter[[#This Row],[Aktuel periode]]<Driftsudgifter[[#This Row],[Forudgående periode]],Driftsudgifter[[#This Row],[Forudgående periode]]<0),-((Driftsudgifter[[#This Row],[Aktuel periode]]/Driftsudgifter[[#This Row],[Forudgående periode]])-1),(Driftsudgifter[[#This Row],[Aktuel periode]]/Driftsudgifter[[#This Row],[Forudgående periode]])-1))),\"-\")","v":{"v":0,"d":"0.00%"}},{"$f":"IFERROR(IF(Driftsudgifter[[#This Row],[Budget]]=Driftsudgifter[[#This Row],[Aktuel periode]],0,IF(Driftsudgifter[[#This Row],[Aktuel periode]]>Driftsudgifter[[#This Row],[Budget]],ABS((Driftsudgifter[[#This Row],[Aktuel periode]]/Driftsudgifter[[#This Row],[Budget]])-1),IF(AND(Driftsudgifter[[#This Row],[Aktuel periode]]<Driftsudgifter[[#This Row],[Budget]],Driftsudgifter[[#This Row],[Budget]]<0),-((Driftsudgifter[[#This Row],[Aktuel periode]]/Driftsudgifter[[#This Row],[Budget]])-1),(Driftsudgifter[[#This Row],[Aktuel periode]]/Driftsudgifter[[#This Row],[Budget]])-1))),\"-\")","v":{"v":0,"d":"0.00%"}}]
[null,"Salg og marketing","Øvrige udgifter (angiv)",{"$nulls":3},{"$f":"IFERROR(IF(Salgsomsætning=0,\"-\",Driftsudgifter[Aktuel periode]/Salgsomsætning),\"-\")","v":"-"},{"$f":"IFERROR(IF(Driftsudgifter[[#This Row],[Forudgående periode]]=Driftsudgifter[[#This Row],[Aktuel periode]],0,IF(Driftsudgifter[[#This Row],[Aktuel periode]]>Driftsudgifter[[#This Row],[Forudgående periode]],ABS((Driftsudgifter[[#This Row],[Aktuel periode]]/Driftsudgifter[[#This Row],[Forudgående periode]])-1),IF(AND(Driftsudgifter[[#This Row],[Aktuel periode]]<Driftsudgifter[[#This Row],[Forudgående periode]],Driftsudgifter[[#This Row],[Forudgående periode]]<0),-((Driftsudgifter[[#This Row],[Aktuel periode]]/Driftsudgifter[[#This Row],[Forudgående periode]])-1),(Driftsudgifter[[#This Row],[Aktuel periode]]/Driftsudgifter[[#This Row],[Forudgående periode]])-1))),\"-\")","v":{"v":0,"d":"0.00%"}},{"$f":"IFERROR(IF(Driftsudgifter[[#This Row],[Budget]]=Driftsudgifter[[#This Row],[Aktuel periode]],0,IF(Driftsudgifter[[#This Row],[Aktuel periode]]>Driftsudgifter[[#This Row],[Budget]],ABS((Driftsudgifter[[#This Row],[Aktuel periode]]/Driftsudgifter[[#This Row],[Budget]])-1),IF(AND(Driftsudgifter[[#This Row],[Aktuel periode]]<Driftsudgifter[[#This Row],[Budget]],Driftsudgifter[[#This Row],[Budget]]<0),-((Driftsudgifter[[#This Row],[Aktuel periode]]/Driftsudgifter[[#This Row],[Budget]])-1),(Driftsudgifter[[#This Row],[Aktuel periode]]/Driftsudgifter[[#This Row],[Budget]])-1))),\"-\")","v":{"v":0,"d":"0.00%"}}]
[null,"Salg og marketing","Øvrige udgifter (angiv)",{"$nulls":3},{"$f":"IFERROR(IF(Salgsomsætning=0,\"-\",Driftsudgifter[Aktuel periode]/Salgsomsætning),\"-\")","v":"-"},{"$f":"IFERROR(IF(Driftsudgifter[[#This Row],[Forudgående periode]]=Driftsudgifter[[#This Row],[Aktuel periode]],0,IF(Driftsudgifter[[#This Row],[Aktuel periode]]>Driftsudgifter[[#This Row],[Forudgående periode]],ABS((Driftsudgifter[[#This Row],[Aktuel periode]]/Driftsudgifter[[#This Row],[Forudgående periode]])-1),IF(AND(Driftsudgifter[[#This Row],[Aktuel periode]]<Driftsudgifter[[#This Row],[Forudgående periode]],Driftsudgifter[[#This Row],[Forudgående periode]]<0),-((Driftsudgifter[[#This Row],[Aktuel periode]]/Driftsudgifter[[#This Row],[Forudgående periode]])-1),(Driftsudgifter[[#This Row],[Aktuel periode]]/Driftsudgifter[[#This Row],[Forudgående periode]])-1))),\"-\")","v":{"v":0,"d":"0.00%"}},{"$f":"IFERROR(IF(Driftsudgifter[[#This Row],[Budget]]=Driftsudgifter[[#This Row],[Aktuel periode]],0,IF(Driftsudgifter[[#This Row],[Aktuel periode]]>Driftsudgifter[[#This Row],[Budget]],ABS((Driftsudgifter[[#This Row],[Aktuel periode]]/Driftsudgifter[[#This Row],[Budget]])-1),IF(AND(Driftsudgifter[[#This Row],[Aktuel periode]]<Driftsudgifter[[#This Row],[Budget]],Driftsudgifter[[#This Row],[Budget]]<0),-((Driftsudgifter[[#This Row],[Aktuel periode]]/Driftsudgifter[[#This Row],[Budget]])-1),(Driftsudgifter[[#This Row],[Aktuel periode]]/Driftsudgifter[[#This Row],[Budget]])-1))),\"-\")","v":{"v":0,"d":"0.00%"}}]
[null,"Forskning og udvikling","Licenser til teknologi",{"$nulls":3},{"$f":"IFERROR(IF(Salgsomsætning=0,\"-\",Driftsudgifter[Aktuel periode]/Salgsomsætning),\"-\")","v":"-"},{"$f":"IFERROR(IF(Driftsudgifter[[#This Row],[Forudgående periode]]=Driftsudgifter[[#This Row],[Aktuel periode]],0,IF(Driftsudgifter[[#This Row],[Aktuel periode]]>Driftsudgifter[[#This Row],[Forudgående periode]],ABS((Driftsudgifter[[#This Row],[Aktuel periode]]/Driftsudgifter[[#This Row],[Forudgående periode]])-1),IF(AND(Driftsudgifter[[#This Row],[Aktuel periode]]<Driftsudgifter[[#This Row],[Forudgående periode]],Driftsudgifter[[#This Row],[Forudgående periode]]<0),-((Driftsudgifter[[#This Row],[Aktuel periode]]/Driftsudgifter[[#This Row],[Forudgående periode]])-1),(Driftsudgifter[[#This Row],[Aktuel periode]]/Driftsudgifter[[#This Row],[Forudgående periode]])-1))),\"-\")","v":{"v":0,"d":"0.00%"}},{"$f":"IFERROR(IF(Driftsudgifter[[#This Row],[Budget]]=Driftsudgifter[[#This Row],[Aktuel periode]],0,IF(Driftsudgifter[[#This Row],[Aktuel periode]]>Driftsudgifter[[#This Row],[Budget]],ABS((Driftsudgifter[[#This Row],[Aktuel periode]]/Driftsudgifter[[#This Row],[Budget]])-1),IF(AND(Driftsudgifter[[#This Row],[Aktuel periode]]<Driftsudgifter[[#This Row],[Budget]],Driftsudgifter[[#This Row],[Budget]]<0),-((Driftsudgifter[[#This Row],[Aktuel periode]]/Driftsudgifter[[#This Row],[Budget]])-1),(Driftsudgifter[[#This Row],[Aktuel periode]]/Driftsudgifter[[#This Row],[Budget]])-1))),\"-\")","v":{"v":0,"d":"0.00%"}}]
[null,"Forskning og udvikling","Patenter ",{"$nulls":3},{"$f":"IFERROR(IF(Salgsomsætning=0,\"-\",Driftsudgifter[Aktuel periode]/Salgsomsætning),\"-\")","v":"-"},{"$f":"IFERROR(IF(Driftsudgifter[[#This Row],[Forudgående periode]]=Driftsudgifter[[#This Row],[Aktuel periode]],0,IF(Driftsudgifter[[#This Row],[Aktuel periode]]>Driftsudgifter[[#This Row],[Forudgående periode]],ABS((Driftsudgifter[[#This Row],[Aktuel periode]]/Driftsudgifter[[#This Row],[Forudgående periode]])-1),IF(AND(Driftsudgifter[[#This Row],[Aktuel periode]]<Driftsudgifter[[#This Row],[Forudgående periode]],Driftsudgifter[[#This Row],[Forudgående periode]]<0),-((Driftsudgifter[[#This Row],[Aktuel periode]]/Driftsudgifter[[#This Row],[Forudgående periode]])-1),(Driftsudgifter[[#This Row],[Aktuel periode]]/Driftsudgifter[[#This Row],[Forudgående periode]])-1))),\"-\")","v":{"v":0,"d":"0.00%"}},{"$f":"IFERROR(IF(Driftsudgifter[[#This Row],[Budget]]=Driftsudgifter[[#This Row],[Aktuel periode]],0,IF(Driftsudgifter[[#This Row],[Aktuel periode]]>Driftsudgifter[[#This Row],[Budget]],ABS((Driftsudgifter[[#This Row],[Aktuel periode]]/Driftsudgifter[[#This Row],[Budget]])-1),IF(AND(Driftsudgifter[[#This Row],[Aktuel periode]]<Driftsudgifter[[#This Row],[Budget]],Driftsudgifter[[#This Row],[Budget]]<0),-((Driftsudgifter[[#This Row],[Aktuel periode]]/Driftsudgifter[[#This Row],[Budget]])-1),(Driftsudgifter[[#This Row],[Aktuel periode]]/Driftsudgifter[[#This Row],[Budget]])-1))),\"-\")","v":{"v":0,"d":"0.00%"}}]
[null,"Forskning og udvikling","Øvrige udgifter (angiv)",{"$nulls":3},{"$f":"IFERROR(IF(Salgsomsætning=0,\"-\",Driftsudgifter[Aktuel periode]/Salgsomsætning),\"-\")","v":"-"},{"$f":"IFERROR(IF(Driftsudgifter[[#This Row],[Forudgående periode]]=Driftsudgifter[[#This Row],[Aktuel periode]],0,IF(Driftsudgifter[[#This Row],[Aktuel periode]]>Driftsudgifter[[#This Row],[Forudgående periode]],ABS((Driftsudgifter[[#This Row],[Aktuel periode]]/Driftsudgifter[[#This Row],[Forudgående periode]])-1),IF(AND(Driftsudgifter[[#This Row],[Aktuel periode]]<Driftsudgifter[[#This Row],[Forudgående periode]],Driftsudgifter[[#This Row],[Forudgående periode]]<0),-((Driftsudgifter[[#This Row],[Aktuel periode]]/Driftsudgifter[[#This Row],[Forudgående periode]])-1),(Driftsudgifter[[#This Row],[Aktuel periode]]/Driftsudgifter[[#This Row],[Forudgående periode]])-1))),\"-\")","v":{"v":0,"d":"0.00%"}},{"$f":"IFERROR(IF(Driftsudgifter[[#This Row],[Budget]]=Driftsudgifter[[#This Row],[Aktuel periode]],0,IF(Driftsudgifter[[#This Row],[Aktuel periode]]>Driftsudgifter[[#This Row],[Budget]],ABS((Driftsudgifter[[#This Row],[Aktuel periode]]/Driftsudgifter[[#This Row],[Budget]])-1),IF(AND(Driftsudgifter[[#This Row],[Aktuel periode]]<Driftsudgifter[[#This Row],[Budget]],Driftsudgifter[[#This Row],[Budget]]<0),-((Driftsudgifter[[#This Row],[Aktuel periode]]/Driftsudgifter[[#This Row],[Budget]])-1),(Driftsudgifter[[#This Row],[Aktuel periode]]/Driftsudgifter[[#This Row],[Budget]])-1))),\"-\")","v":{"v":0,"d":"0.00%"}}]
[null,"Forskning og udvikling","Øvrige udgifter (angiv)",{"$nulls":3},{"$f":"IFERROR(IF(Salgsomsætning=0,\"-\",Driftsudgifter[Aktuel periode]/Salgsomsætning),\"-\")","v":"-"},{"$f":"IFERROR(IF(Driftsudgifter[[#This Row],[Forudgående periode]]=Driftsudgifter[[#This Row],[Aktuel periode]],0,IF(Driftsudgifter[[#This Row],[Aktuel periode]]>Driftsudgifter[[#This Row],[Forudgående periode]],ABS((Driftsudgifter[[#This Row],[Aktuel periode]]/Driftsudgifter[[#This Row],[Forudgående periode]])-1),IF(AND(Driftsudgifter[[#This Row],[Aktuel periode]]<Driftsudgifter[[#This Row],[Forudgående periode]],Driftsudgifter[[#This Row],[Forudgående periode]]<0),-((Driftsudgifter[[#This Row],[Aktuel periode]]/Driftsudgifter[[#This Row],[Forudgående periode]])-1),(Driftsudgifter[[#This Row],[Aktuel periode]]/Driftsudgifter[[#This Row],[Forudgående periode]])-1))),\"-\")","v":{"v":0,"d":"0.00%"}},{"$f":"IFERROR(IF(Driftsudgifter[[#This Row],[Budget]]=Driftsudgifter[[#This Row],[Aktuel periode]],0,IF(Driftsudgifter[[#This Row],[Aktuel periode]]>Driftsudgifter[[#This Row],[Budget]],ABS((Driftsudgifter[[#This Row],[Aktuel periode]]/Driftsudgifter[[#This Row],[Budget]])-1),IF(AND(Driftsudgifter[[#This Row],[Aktuel periode]]<Driftsudgifter[[#This Row],[Budget]],Driftsudgifter[[#This Row],[Budget]]<0),-((Driftsudgifter[[#This Row],[Aktuel periode]]/Driftsudgifter[[#This Row],[Budget]])-1),(Driftsudgifter[[#This Row],[Aktuel periode]]/Driftsudgifter[[#This Row],[Budget]])-1))),\"-\")","v":{"v":0,"d":"0.00%"}}]
[null,"Generelt og administrativt","Løn",{"$nulls":3},{"$f":"IFERROR(IF(Salgsomsætning=0,\"-\",Driftsudgifter[Aktuel periode]/Salgsomsætning),\"-\")","v":"-"},{"$f":"IFERROR(IF(Driftsudgifter[[#This Row],[Forudgående periode]]=Driftsudgifter[[#This Row],[Aktuel periode]],0,IF(Driftsudgifter[[#This Row],[Aktuel periode]]>Driftsudgifter[[#This Row],[Forudgående periode]],ABS((Driftsudgifter[[#This Row],[Aktuel periode]]/Driftsudgifter[[#This Row],[Forudgående periode]])-1),IF(AND(Driftsudgifter[[#This Row],[Aktuel periode]]<Driftsudgifter[[#This Row],[Forudgående periode]],Driftsudgifter[[#This Row],[Forudgående periode]]<0),-((Driftsudgifter[[#This Row],[Aktuel periode]]/Driftsudgifter[[#This Row],[Forudgående periode]])-1),(Driftsudgifter[[#This Row],[Aktuel periode]]/Driftsudgifter[[#This Row],[Forudgående periode]])-1))),\"-\")","v":{"v":0,"d":"0.00%"}},{"$f":"IFERROR(IF(Driftsudgifter[[#This Row],[Budget]]=Driftsudgifter[[#This Row],[Aktuel periode]],0,IF(Driftsudgifter[[#This Row],[Aktuel periode]]>Driftsudgifter[[#This Row],[Budget]],ABS((Driftsudgifter[[#This Row],[Aktuel periode]]/Driftsudgifter[[#This Row],[Budget]])-1),IF(AND(Driftsudgifter[[#This Row],[Aktuel periode]]<Driftsudgifter[[#This Row],[Budget]],Driftsudgifter[[#This Row],[Budget]]<0),-((Driftsudgifter[[#This Row],[Aktuel periode]]/Driftsudgifter[[#This Row],[Budget]])-1),(Driftsudgifter[[#This Row],[Aktuel periode]]/Driftsudgifter[[#This Row],[Budget]])-1))),\"-\")","v":{"v":0,"d":"0.00%"}}]
[null,"Generelt og administrativt","Eksterne tjenester",{"$nulls":3},{"$f":"IFERROR(IF(Salgsomsætning=0,\"-\",Driftsudgifter[Aktuel periode]/Salgsomsætning),\"-\")","v":"-"},{"$f":"IFERROR(IF(Driftsudgifter[[#This Row],[Forudgående periode]]=Driftsudgifter[[#This Row],[Aktuel periode]],0,IF(Driftsudgifter[[#This Row],[Aktuel periode]]>Driftsudgifter[[#This Row],[Forudgående periode]],ABS((Driftsudgifter[[#This Row],[Aktuel periode]]/Driftsudgifter[[#This Row],[Forudgående periode]])-1),IF(AND(Driftsudgifter[[#This Row],[Aktuel periode]]<Driftsudgifter[[#This Row],[Forudgående periode]],Driftsudgifter[[#This Row],[Forudgående periode]]<0),-((Driftsudgifter[[#This Row],[Aktuel periode]]/Driftsudgifter[[#This Row],[Forudgående periode]])-1),(Driftsudgifter[[#This Row],[Aktuel periode]]/Driftsudgifter[[#This Row],[Forudgående periode]])-1))),\"-\")","v":{"v":0,"d":"0.00%"}},{"$f":"IFERROR(IF(Driftsudgifter[[#This Row],[Budget]]=Driftsudgifter[[#This Row],[Aktuel periode]],0,IF(Driftsudgifter[[#This Row],[Aktuel periode]]>Driftsudgifter[[#This Row],[Budget]],ABS((Driftsudgifter[[#This Row],[Aktuel periode]]/Driftsudgifter[[#This Row],[Budget]])-1),IF(AND(Driftsudgifter[[#This Row],[Aktuel periode]]<Driftsudgifter[[#This Row],[Budget]],Driftsudgifter[[#This Row],[Budget]]<0),-((Driftsudgifter[[#This Row],[Aktuel periode]]/Driftsudgifter[[#This Row],[Budget]])-1),(Driftsudgifter[[#This Row],[Aktuel periode]]/Driftsudgifter[[#This Row],[Budget]])-1))),\"-\")","v":{"v":0,"d":"0.00%"}}]
[null,"Generelt og administrativt","Forsyninger",{"$nulls":3},{"$f":"IFERROR(IF(Salgsomsætning=0,\"-\",Driftsudgifter[Aktuel periode]/Salgsomsætning),\"-\")","v":"-"},{"$f":"IFERROR(IF(Driftsudgifter[[#This Row],[Forudgående periode]]=Driftsudgifter[[#This Row],[Aktuel periode]],0,IF(Driftsudgifter[[#This Row],[Aktuel periode]]>Driftsudgifter[[#This Row],[Forudgående periode]],ABS((Driftsudgifter[[#This Row],[Aktuel periode]]/Driftsudgifter[[#This Row],[Forudgående periode]])-1),IF(AND(Driftsudgifter[[#This Row],[Aktuel periode]]<Driftsudgifter[[#This Row],[Forudgående periode]],Driftsudgifter[[#This Row],[Forudgående periode]]<0),-((Driftsudgifter[[#This Row],[Aktuel periode]]/Driftsudgifter[[#This Row],[Forudgående periode]])-1),(Driftsudgifter[[#This Row],[Aktuel periode]]/Driftsudgifter[[#This Row],[Forudgående periode]])-1))),\"-\")","v":{"v":0,"d":"0.00%"}},{"$f":"IFERROR(IF(Driftsudgifter[[#This Row],[Budget]]=Driftsudgifter[[#This Row],[Aktuel periode]],0,IF(Driftsudgifter[[#This Row],[Aktuel periode]]>Driftsudgifter[[#This Row],[Budget]],ABS((Driftsudgifter[[#This Row],[Aktuel periode]]/Driftsudgifter[[#This Row],[Budget]])-1),IF(AND(Driftsudgifter[[#This Row],[Aktuel periode]]<Driftsudgifter[[#This Row],[Budget]],Driftsudgifter[[#This Row],[Budget]]<0),-((Driftsudgifter[[#This Row],[Aktuel periode]]/Driftsudgifter[[#This Row],[Budget]])-1),(Driftsudgifter[[#This Row],[Aktuel periode]]/Driftsudgifter[[#This Row],[Budget]])-1))),\"-\")","v":{"v":0,"d":"0.00%"}}]
[null,"Generelt og administrativt","Måltider og underholdning",{"$nulls":3},{"$f":"IFERROR(IF(Salgsomsætning=0,\"-\",Driftsudgifter[Aktuel periode]/Salgsomsætning),\"-\")","v":"-"},{"$f":"IFERROR(IF(Driftsudgifter[[#This Row],[Forudgående periode]]=Driftsudgifter[[#This Row],[Aktuel periode]],0,IF(Driftsudgifter[[#This Row],[Aktuel periode]]>Driftsudgifter[[#This Row],[Forudgående periode]],ABS((Driftsudgifter[[#This Row],[Aktuel periode]]/Driftsudgifter[[#This Row],[Forudgående periode]])-1),IF(AND(Driftsudgifter[[#This Row],[Aktuel periode]]<Driftsudgifter[[#This Row],[Forudgående periode]],Driftsudgifter[[#This Row],[Forudgående periode]]<0),-((Driftsudgifter[[#This Row],[Aktuel periode]]/Driftsudgifter[[#This Row],[Forudgående periode]])-1),(Driftsudgifter[[#This Row],[Aktuel periode]]/Driftsudgifter[[#This Row],[Forudgående periode]])-1))),\"-\")","v":{"v":0,"d":"0.00%"}},{"$f":"IFERROR(IF(Driftsudgifter[[#This Row],[Budget]]=Driftsudgifter[[#This Row],[Aktuel periode]],0,IF(Driftsudgifter[[#This Row],[Aktuel periode]]>Driftsudgifter[[#This Row],[Budget]],ABS((Driftsudgifter[[#This Row],[Aktuel periode]]/Driftsudgifter[[#This Row],[Budget]])-1),IF(AND(Driftsudgifter[[#This Row],[Aktuel periode]]<Driftsudgifter[[#This Row],[Budget]],Driftsudgifter[[#This Row],[Budget]]<0),-((Driftsudgifter[[#This Row],[Aktuel periode]]/Driftsudgifter[[#This Row],[Budget]])-1),(Driftsudgifter[[#This Row],[Aktuel periode]]/Driftsudgifter[[#This Row],[Budget]])-1))),\"-\")","v":{"v":0,"d":"0.00%"}}]
[null,"Generelt og administrativt","Leje",{"$nulls":3},{"$f":"IFERROR(IF(Salgsomsætning=0,\"-\",Driftsudgifter[Aktuel periode]/Salgsomsætning),\"-\")","v":"-"},{"$f":"IFERROR(IF(Driftsudgifter[[#This Row],[Forudgående periode]]=Driftsudgifter[[#This Row],[Aktuel periode]],0,IF(Driftsudgifter[[#This Row],[Aktuel periode]]>Driftsudgifter[[#This Row],[Forudgående periode]],ABS((Driftsudgifter[[#This Row],[Aktuel periode]]/Driftsudgifter[[#This Row],[Forudgående periode]])-1),IF(AND(Driftsudgifter[[#This Row],[Aktuel periode]]<Driftsudgifter[[#This Row],[Forudgående periode]],Driftsudgifter[[#This Row],[Forudgående periode]]<0),-((Driftsudgifter[[#This Row],[Aktuel periode]]/Driftsudgifter[[#This Row],[Forudgående periode]])-1),(Driftsudgifter[[#This Row],[Aktuel periode]]/Driftsudgifter[[#This Row],[Forudgående periode]])-1))),\"-\")","v":{"v":0,"d":"0.00%"}},{"$f":"IFERROR(IF(Driftsudgifter[[#This Row],[Budget]]=Driftsudgifter[[#This Row],[Aktuel periode]],0,IF(Driftsudgifter[[#This Row],[Aktuel periode]]>Driftsudgifter[[#This Row],[Budget]],ABS((Driftsudgifter[[#This Row],[Aktuel periode]]/Driftsudgifter[[#This Row],[Budget]])-1),IF(AND(Driftsudgifter[[#This Row],[Aktuel periode]]<Driftsudgifter[[#This Row],[Budget]],Driftsudgifter[[#This Row],[Budget]]<0),-((Driftsudgifter[[#This Row],[Aktuel periode]]/Driftsudgifter[[#This Row],[Budget]])-1),(Driftsudgifter[[#This Row],[Aktuel periode]]/Driftsudgifter[[#This Row],[Budget]])-1))),\"-\")","v":{"v":0,"d":"0.00%"}}]
[null,"Generelt og administrativt","Telefonnummer",{"$nulls":3},{"$f":"IFERROR(IF(Salgsomsætning=0,\"-\",Driftsudgifter[Aktuel periode]/Salgsomsætning),\"-\")","v":"-"},{"$f":"IFERROR(IF(Driftsudgifter[[#This Row],[Forudgående periode]]=Driftsudgifter[[#This Row],[Aktuel periode]],0,IF(Driftsudgifter[[#This Row],[Aktuel periode]]>Driftsudgifter[[#This Row],[Forudgående periode]],ABS((Driftsudgifter[[#This Row],[Aktuel periode]]/Driftsudgifter[[#This Row],[Forudgående periode]])-1),IF(AND(Driftsudgifter[[#This Row],[Aktuel periode]]<Driftsudgifter[[#This Row],[Forudgående periode]],Driftsudgifter[[#This Row],[Forudgående periode]]<0),-((Driftsudgifter[[#This Row],[Aktuel periode]]/Driftsudgifter[[#This Row],[Forudgående periode]])-1),(Driftsudgifter[[#This Row],[Aktuel periode]]/Driftsudgifter[[#This Row],[Forudgående periode]])-1))),\"-\")","v":{"v":0,"d":"0.00%"}},{"$f":"IFERROR(IF(Driftsudgifter[[#This Row],[Budget]]=Driftsudgifter[[#This Row],[Aktuel periode]],0,IF(Driftsudgifter[[#This Row],[Aktuel periode]]>Driftsudgifter[[#This Row],[Budget]],ABS((Driftsudgifter[[#This Row],[Aktuel periode]]/Driftsudgifter[[#This Row],[Budget]])-1),IF(AND(Driftsudgifter[[#This Row],[Aktuel periode]]<Driftsudgifter[[#This Row],[Budget]],Driftsudgifter[[#This Row],[Budget]]<0),-((Driftsudgifter[[#This Row],[Aktuel periode]]/Driftsudgifter[[#This Row],[Budget]])-1),(Driftsudgifter[[#This Row],[Aktuel periode]]/Driftsudgifter[[#This Row],[Budget]])-1))),\"-\")","v":{"v":0,"d":"0.00%"}}]
[null,"Generelt og administrativt","El, vand og varme",{"$nulls":3},{"$f":"IFERROR(IF(Salgsomsætning=0,\"-\",Driftsudgifter[Aktuel periode]/Salgsomsætning),\"-\")","v":"-"},{"$f":"IFERROR(IF(Driftsudgifter[[#This Row],[Forudgående periode]]=Driftsudgifter[[#This Row],[Aktuel periode]],0,IF(Driftsudgifter[[#This Row],[Aktuel periode]]>Driftsudgifter[[#This Row],[Forudgående periode]],ABS((Driftsudgifter[[#This Row],[Aktuel periode]]/Driftsudgifter[[#This Row],[Forudgående periode]])-1),IF(AND(Driftsudgifter[[#This Row],[Aktuel periode]]<Driftsudgifter[[#This Row],[Forudgående periode]],Driftsudgifter[[#This Row],[Forudgående periode]]<0),-((Driftsudgifter[[#This Row],[Aktuel periode]]/Driftsudgifter[[#This Row],[Forudgående periode]])-1),(Driftsudgifter[[#This Row],[Aktuel periode]]/Driftsudgifter[[#This Row],[Forudgående periode]])-1))),\"-\")","v":{"v":0,"d":"0.00%"}},{"$f":"IFERROR(IF(Driftsudgifter[[#This Row],[Budget]]=Driftsudgifter[[#This Row],[Aktuel periode]],0,IF(Driftsudgifter[[#This Row],[Aktuel periode]]>Driftsudgifter[[#This Row],[Budget]],ABS((Driftsudgifter[[#This Row],[Aktuel periode]]/Driftsudgifter[[#This Row],[Budget]])-1),IF(AND(Driftsudgifter[[#This Row],[Aktuel periode]]<Driftsudgifter[[#This Row],[Budget]],Driftsudgifter[[#This Row],[Budget]]<0),-((Driftsudgifter[[#This Row],[Aktuel periode]]/Driftsudgifter[[#This Row],[Budget]])-1),(Driftsudgifter[[#This Row],[Aktuel periode]]/Driftsudgifter[[#This Row],[Budget]])-1))),\"-\")","v":{"v":0,"d":"0.00%"}}]
[null,"Generelt og administrativt","Afskrivning",{"$nulls":3},{"$f":"IFERROR(IF(Salgsomsætning=0,\"-\",Driftsudgifter[Aktuel periode]/Salgsomsætning),\"-\")","v":"-"},{"$f":"IFERROR(IF(Driftsudgifter[[#This Row],[Forudgående periode]]=Driftsudgifter[[#This Row],[Aktuel periode]],0,IF(Driftsudgifter[[#This Row],[Aktuel periode]]>Driftsudgifter[[#This Row],[Forudgående periode]],ABS((Driftsudgifter[[#This Row],[Aktuel periode]]/Driftsudgifter[[#This Row],[Forudgående periode]])-1),IF(AND(Driftsudgifter[[#This Row],[Aktuel periode]]<Driftsudgifter[[#This Row],[Forudgående periode]],Driftsudgifter[[#This Row],[Forudgående periode]]<0),-((Driftsudgifter[[#This Row],[Aktuel periode]]/Driftsudgifter[[#This Row],[Forudgående periode]])-1),(Driftsudgifter[[#This Row],[Aktuel periode]]/Driftsudgifter[[#This Row],[Forudgående periode]])-1))),\"-\")","v":{"v":0,"d":"0.00%"}},{"$f":"IFERROR(IF(Driftsudgifter[[#This Row],[Budget]]=Driftsudgifter[[#This Row],[Aktuel periode]],0,IF(Driftsudgifter[[#This Row],[Aktuel periode]]>Driftsudgifter[[#This Row],[Budget]],ABS((Driftsudgifter[[#This Row],[Aktuel periode]]/Driftsudgifter[[#This Row],[Budget]])-1),IF(AND(Driftsudgifter[[#This Row],[Aktuel periode]]<Driftsudgifter[[#This Row],[Budget]],Driftsudgifter[[#This Row],[Budget]]<0),-((Driftsudgifter[[#This Row],[Aktuel periode]]/Driftsudgifter[[#This Row],[Budget]])-1),(Driftsudgifter[[#This Row],[Aktuel periode]]/Driftsudgifter[[#This Row],[Budget]])-1))),\"-\")","v":{"v":0,"d":"0.00%"}}]
[null,"Generelt og administrativt","Forsikring",{"$nulls":3},{"$f":"IFERROR(IF(Salgsomsætning=0,\"-\",Driftsudgifter[Aktuel periode]/Salgsomsætning),\"-\")","v":"-"},{"$f":"IFERROR(IF(Driftsudgifter[[#This Row],[Forudgående periode]]=Driftsudgifter[[#This Row],[Aktuel periode]],0,IF(Driftsudgifter[[#This Row],[Aktuel periode]]>Driftsudgifter[[#This Row],[Forudgående periode]],ABS((Driftsudgifter[[#This Row],[Aktuel periode]]/Driftsudgifter[[#This Row],[Forudgående periode]])-1),IF(AND(Driftsudgifter[[#This Row],[Aktuel periode]]<Driftsudgifter[[#This Row],[Forudgående periode]],Driftsudgifter[[#This Row],[Forudgående periode]]<0),-((Driftsudgifter[[#This Row],[Aktuel periode]]/Driftsudgifter[[#This Row],[Forudgående periode]])-1),(Driftsudgifter[[#This Row],[Aktuel periode]]/Driftsudgifter[[#This Row],[Forudgående periode]])-1))),\"-\")","v":{"v":0,"d":"0.00%"}},{"$f":"IFERROR(IF(Driftsudgifter[[#This Row],[Budget]]=Driftsudgifter[[#This Row],[Aktuel periode]],0,IF(Driftsudgifter[[#This Row],[Aktuel periode]]>Driftsudgifter[[#This Row],[Budget]],ABS((Driftsudgifter[[#This Row],[Aktuel periode]]/Driftsudgifter[[#This Row],[Budget]])-1),IF(AND(Driftsudgifter[[#This Row],[Aktuel periode]]<Driftsudgifter[[#This Row],[Budget]],Driftsudgifter[[#This Row],[Budget]]<0),-((Driftsudgifter[[#This Row],[Aktuel periode]]/Driftsudgifter[[#This Row],[Budget]])-1),(Driftsudgifter[[#This Row],[Aktuel periode]]/Driftsudgifter[[#This Row],[Budget]])-1))),\"-\")","v":{"v":0,"d":"0.00%"}}]
[null,"Generelt og administrativt","Reparationer og vedligeholdelse",{"$nulls":3},{"$f":"IFERROR(IF(Salgsomsætning=0,\"-\",Driftsudgifter[Aktuel periode]/Salgsomsætning),\"-\")","v":"-"},{"$f":"IFERROR(IF(Driftsudgifter[[#This Row],[Forudgående periode]]=Driftsudgifter[[#This Row],[Aktuel periode]],0,IF(Driftsudgifter[[#This Row],[Aktuel periode]]>Driftsudgifter[[#This Row],[Forudgående periode]],ABS((Driftsudgifter[[#This Row],[Aktuel periode]]/Driftsudgifter[[#This Row],[Forudgående periode]])-1),IF(AND(Driftsudgifter[[#This Row],[Aktuel periode]]<Driftsudgifter[[#This Row],[Forudgående periode]],Driftsudgifter[[#This Row],[Forudgående periode]]<0),-((Driftsudgifter[[#This Row],[Aktuel periode]]/Driftsudgifter[[#This Row],[Forudgående periode]])-1),(Driftsudgifter[[#This Row],[Aktuel periode]]/Driftsudgifter[[#This Row],[Forudgående periode]])-1))),\"-\")","v":{"v":0,"d":"0.00%"}},{"$f":"IFERROR(IF(Driftsudgifter[[#This Row],[Budget]]=Driftsudgifter[[#This Row],[Aktuel periode]],0,IF(Driftsudgifter[[#This Row],[Aktuel periode]]>Driftsudgifter[[#This Row],[Budget]],ABS((Driftsudgifter[[#This Row],[Aktuel periode]]/Driftsudgifter[[#This Row],[Budget]])-1),IF(AND(Driftsudgifter[[#This Row],[Aktuel periode]]<Driftsudgifter[[#This Row],[Budget]],Driftsudgifter[[#This Row],[Budget]]<0),-((Driftsudgifter[[#This Row],[Aktuel periode]]/Driftsudgifter[[#This Row],[Budget]])-1),(Driftsudgifter[[#This Row],[Aktuel periode]]/Driftsudgifter[[#This Row],[Budget]])-1))),\"-\")","v":{"v":0,"d":"0.00%"}}]
[null,"Generelt og administrativt","Øvrige udgifter (angiv)",{"$nulls":3},{"$f":"IFERROR(IF(Salgsomsætning=0,\"-\",Driftsudgifter[Aktuel periode]/Salgsomsætning),\"-\")","v":"-"},{"$f":"IFERROR(IF(Driftsudgifter[[#This Row],[Forudgående periode]]=Driftsudgifter[[#This Row],[Aktuel periode]],0,IF(Driftsudgifter[[#This Row],[Aktuel periode]]>Driftsudgifter[[#This Row],[Forudgående periode]],ABS((Driftsudgifter[[#This Row],[Aktuel periode]]/Driftsudgifter[[#This Row],[Forudgående periode]])-1),IF(AND(Driftsudgifter[[#This Row],[Aktuel periode]]<Driftsudgifter[[#This Row],[Forudgående periode]],Driftsudgifter[[#This Row],[Forudgående periode]]<0),-((Driftsudgifter[[#This Row],[Aktuel periode]]/Driftsudgifter[[#This Row],[Forudgående periode]])-1),(Driftsudgifter[[#This Row],[Aktuel periode]]/Driftsudgifter[[#This Row],[Forudgående periode]])-1))),\"-\")","v":{"v":0,"d":"0.00%"}},{"$f":"IFERROR(IF(Driftsudgifter[[#This Row],[Budget]]=Driftsudgifter[[#This Row],[Aktuel periode]],0,IF(Driftsudgifter[[#This Row],[Aktuel periode]]>Driftsudgifter[[#This Row],[Budget]],ABS((Driftsudgifter[[#This Row],[Aktuel periode]]/Driftsudgifter[[#This Row],[Budget]])-1),IF(AND(Driftsudgifter[[#This Row],[Aktuel periode]]<Driftsudgifter[[#This Row],[Budget]],Driftsudgifter[[#This Row],[Budget]]<0),-((Driftsudgifter[[#This Row],[Aktuel periode]]/Driftsudgifter[[#This Row],[Budget]])-1),(Driftsudgifter[[#This Row],[Aktuel periode]]/Driftsudgifter[[#This Row],[Budget]])-1))),\"-\")","v":{"v":0,"d":"0.00%"}}]
[null,"Generelt og administrativt","Øvrige udgifter (angiv)",{"$nulls":3},{"$f":"IFERROR(IF(Salgsomsætning=0,\"-\",Driftsudgifter[Aktuel periode]/Salgsomsætning),\"-\")","v":"-"},{"$f":"IFERROR(IF(Driftsudgifter[[#This Row],[Forudgående periode]]=Driftsudgifter[[#This Row],[Aktuel periode]],0,IF(Driftsudgifter[[#This Row],[Aktuel periode]]>Driftsudgifter[[#This Row],[Forudgående periode]],ABS((Driftsudgifter[[#This Row],[Aktuel periode]]/Driftsudgifter[[#This Row],[Forudgående periode]])-1),IF(AND(Driftsudgifter[[#This Row],[Aktuel periode]]<Driftsudgifter[[#This Row],[Forudgående periode]],Driftsudgifter[[#This Row],[Forudgående periode]]<0),-((Driftsudgifter[[#This Row],[Aktuel periode]]/Driftsudgifter[[#This Row],[Forudgående periode]])-1),(Driftsudgifter[[#This Row],[Aktuel periode]]/Driftsudgifter[[#This Row],[Forudgående periode]])-1))),\"-\")","v":{"v":0,"d":"0.00%"}},{"$f":"IFERROR(IF(Driftsudgifter[[#This Row],[Budget]]=Driftsudgifter[[#This Row],[Aktuel periode]],0,IF(Driftsudgifter[[#This Row],[Aktuel periode]]>Driftsudgifter[[#This Row],[Budget]],ABS((Driftsudgifter[[#This Row],[Aktuel periode]]/Driftsudgifter[[#This Row],[Budget]])-1),IF(AND(Driftsudgifter[[#This Row],[Aktuel periode]]<Driftsudgifter[[#This Row],[Budget]],Driftsudgifter[[#This Row],[Budget]]<0),-((Driftsudgifter[[#This Row],[Aktuel periode]]/Driftsudgifter[[#This Row],[Budget]])-1),(Driftsudgifter[[#This Row],[Aktuel periode]]/Driftsudgifter[[#This Row],[Budget]])-1))),\"-\")","v":{"v":0,"d":"0.00%"}}]
[null,"Samlede driftsudgifter",null,{"$f":"SUBTOTAL(109,Driftsudgifter[Forudgående periode])","v":0},{"$f":"SUBTOTAL(109,Driftsudgifter[Budget])","v":0},{"$f":"SUBTOTAL(109,Driftsudgifter[Aktuel periode])","v":0},{"$f":"SUBTOTAL(109,Driftsudgifter[Aktuel periode som % af salg])","v":{"v":0,"d":"0.00%"}},{"$f":"SUBTOTAL(109,Driftsudgifter[% ændret ift. forudgående periode])","v":{"v":0,"d":"0.00%"}},{"$f":"SUBTOTAL(109,Driftsudgifter[% ændret ift. budget])","v":{"v":0,"d":"0.00%"}}]

{"sheet":"Skat","index":4,"n_rows":10,"n_cols":9,"rows_kept":10,"merged":[[0,7,2,8]]}
[null,{"$f":"Projektmappe_titel","v":"Resultatopgørelse"}]
[null,{"$f":"Firmanavn","v":"Firmanavn"},"Angivet i tusindedele"]
[null,"Skat",{"$f":"IFERROR(Skat[[#Totals],[Aktuel periode]],\"-\")","v":0}]
[null,"Type","Beskrivelse","Forudgående periode","Budget","Aktuel periode","Aktuel periode som % af salg","% ændret ift. forudgående periode","% ændret ift. budget"]
[null,"Skat","Indkomstskat",{"$nulls":3},{"$f":"IFERROR(IF(Salgsomsætning=0,\"-\",Skat[Aktuel periode]/Salgsomsætning),\"-\")","v":"-"},{"$f":"IFERROR(IF(Skat[[#This Row],[Forudgående periode]]=Skat[[#This Row],[Aktuel periode]],0,IF(Skat[[#This Row],[Aktuel periode]]>Skat[[#This Row],[Forudgående periode]],ABS((Skat[[#This Row],[Aktuel periode]]/Skat[[#This Row],[Forudgående periode]])-1),IF(AND(Skat[[#This Row],[Aktuel periode]]<Skat[[#This Row],[Forudgående periode]],Skat[[#This Row],[Forudgående periode]]<0),-((Skat[[#This Row],[Aktuel periode]]/Skat[[#This Row],[Forudgående periode]])-1),(Skat[[#This Row],[Aktuel periode]]/Skat[[#This Row],[Forudgående periode]])-1))),\"-\")","v":{"v":0,"d":"0.00%"}},{"$f":"IFERROR(IF(Skat[[#This Row],[Budget]]=Skat[[#This Row],[Aktuel periode]],0,IF(Skat[[#This Row],[Aktuel periode]]>Skat[[#This Row],[Budget]],ABS((Skat[[#This Row],[Aktuel periode]]/Skat[[#This Row],[Budget]])-1),IF(AND(Skat[[#This Row],[Aktuel periode]]<Skat[[#This Row],[Budget]],Skat[[#This Row],[Budget]]<0),-((Skat[[#This Row],[Aktuel periode]]/Skat[[#This Row],[Budget]])-1),(Skat[[#This Row],[Aktuel periode]]/Skat[[#This Row],[Budget]])-1))),\"-\")","v":{"v":0,"d":"0.00%"}}]
[null,"Skat","Lønskat",{"$nulls":3},{"$f":"IFERROR(IF(Salgsomsætning=0,\"-\",Skat[Aktuel periode]/Salgsomsætning),\"-\")","v":"-"},{"$f":"IFERROR(IF(Skat[[#This Row],[Forudgående periode]]=Skat[[#This Row],[Aktuel periode]],0,IF(Skat[[#This Row],[Aktuel periode]]>Skat[[#This Row],[Forudgående periode]],ABS((Skat[[#This Row],[Aktuel periode]]/Skat[[#This Row],[Forudgående periode]])-1),IF(AND(Skat[[#This Row],[Aktuel periode]]<Skat[[#This Row],[Forudgående periode]],Skat[[#This Row],[Forudgående periode]]<0),-((Skat[[#This Row],[Aktuel periode]]/Skat[[#This Row],[Forudgående periode]])-1),(Skat[[#This Row],[Aktuel periode]]/Skat[[#This Row],[Forudgående periode]])-1))),\"-\")","v":{"v":0,"d":"0.00%"}},{"$f":"IFERROR(IF(Skat[[#This Row],[Budget]]=Skat[[#This Row],[Aktuel periode]],0,IF(Skat[[#This Row],[Aktuel periode]]>Skat[[#This Row],[Budget]],ABS((Skat[[#This Row],[Aktuel periode]]/Skat[[#This Row],[Budget]])-1),IF(AND(Skat[[#This Row],[Aktuel periode]]<Skat[[#This Row],[Budget]],Skat[[#This Row],[Budget]]<0),-((Skat[[#This Row],[Aktuel periode]]/Skat[[#This Row],[Budget]])-1),(Skat[[#This Row],[Aktuel periode]]/Skat[[#This Row],[Budget]])-1))),\"-\")","v":{"v":0,"d":"0.00%"}}]
[null,"Skat","Ejendomsskat",{"$nulls":3},{"$f":"IFERROR(IF(Salgsomsætning=0,\"-\",Skat[Aktuel periode]/Salgsomsætning),\"-\")","v":"-"},{"$f":"IFERROR(IF(Skat[[#This Row],[Forudgående periode]]=Skat[[#This Row],[Aktuel periode]],0,IF(Skat[[#This Row],[Aktuel periode]]>Skat[[#This Row],[Forudgående periode]],ABS((Skat[[#This Row],[Aktuel periode]]/Skat[[#This Row],[Forudgående periode]])-1),IF(AND(Skat[[#This Row],[Aktuel periode]]<Skat[[#This Row],[Forudgående periode]],Skat[[#This Row],[Forudgående periode]]<0),-((Skat[[#This Row],[Aktuel periode]]/Skat[[#This Row],[Forudgående periode]])-1),(Skat[[#This Row],[Aktuel periode]]/Skat[[#This Row],[Forudgående periode]])-1))),\"-\")","v":{"v":0,"d":"0.00%"}},{"$f":"IFERROR(IF(Skat[[#This Row],[Budget]]=Skat[[#This Row],[Aktuel periode]],0,IF(Skat[[#This Row],[Aktuel periode]]>Skat[[#This Row],[Budget]],ABS((Skat[[#This Row],[Aktuel periode]]/Skat[[#This Row],[Budget]])-1),IF(AND(Skat[[#This Row],[Aktuel periode]]<Skat[[#This Row],[Budget]],Skat[[#This Row],[Budget]]<0),-((Skat[[#This Row],[Aktuel periode]]/Skat[[#This Row],[Budget]])-1),(Skat[[#This Row],[Aktuel periode]]/Skat[[#This Row],[Budget]])-1))),\"-\")","v":{"v":0,"d":"0.00%"}}]
[null,"Skat","Andre skattetyper (angiv)",{"$nulls":3},{"$f":"IFERROR(IF(Salgsomsætning=0,\"-\",Skat[Aktuel periode]/Salgsomsætning),\"-\")","v":"-"},{"$f":"IFERROR(IF(Skat[[#This Row],[Forudgående periode]]=Skat[[#This Row],[Aktuel periode]],0,IF(Skat[[#This Row],[Aktuel periode]]>Skat[[#This Row],[Forudgående periode]],ABS((Skat[[#This Row],[Aktuel periode]]/Skat[[#This Row],[Forudgående periode]])-1),IF(AND(Skat[[#This Row],[Aktuel periode]]<Skat[[#This Row],[Forudgående periode]],Skat[[#This Row],[Forudgående periode]]<0),-((Skat[[#This Row],[Aktuel periode]]/Skat[[#This Row],[Forudgående periode]])-1),(Skat[[#This Row],[Aktuel periode]]/Skat[[#This Row],[Forudgående periode]])-1))),\"-\")","v":{"v":0,"d":"0.00%"}},{"$f":"IFERROR(IF(Skat[[#This Row],[Budget]]=Skat[[#This Row],[Aktuel periode]],0,IF(Skat[[#This Row],[Aktuel periode]]>Skat[[#This Row],[Budget]],ABS((Skat[[#This Row],[Aktuel periode]]/Skat[[#This Row],[Budget]])-1),IF(AND(Skat[[#This Row],[Aktuel periode]]<Skat[[#This Row],[Budget]],Skat[[#This Row],[Budget]]<0),-((Skat[[#This Row],[Aktuel periode]]/Skat[[#This Row],[Budget]])-1),(Skat[[#This Row],[Aktuel periode]]/Skat[[#This Row],[Budget]])-1))),\"-\")","v":{"v":0,"d":"0.00%"}}]
[null,"Skat","Andre skattetyper (angiv)",{"$nulls":3},{"$f":"IFERROR(IF(Salgsomsætning=0,\"-\",Skat[Aktuel periode]/Salgsomsætning),\"-\")","v":"-"},{"$f":"IFERROR(IF(Skat[[#This Row],[Forudgående periode]]=Skat[[#This Row],[Aktuel periode]],0,IF(Skat[[#This Row],[Aktuel periode]]>Skat[[#This Row],[Forudgående periode]],ABS((Skat[[#This Row],[Aktuel periode]]/Skat[[#This Row],[Forudgående periode]])-1),IF(AND(Skat[[#This Row],[Aktuel periode]]<Skat[[#This Row],[Forudgående periode]],Skat[[#This Row],[Forudgående periode]]<0),-((Skat[[#This Row],[Aktuel periode]]/Skat[[#This Row],[Forudgående periode]])-1),(Skat[[#This Row],[Aktuel periode]]/Skat[[#This Row],[Forudgående periode]])-1))),\"-\")","v":{"v":0,"d":"0.00%"}},{"$f":"IFERROR(IF(Skat[[#This Row],[Budget]]=Skat[[#This Row],[Aktuel periode]],0,IF(Skat[[#This Row],[Aktuel periode]]>Skat[[#This Row],[Budget]],ABS((Skat[[#This Row],[Aktuel periode]]/Skat[[#This Row],[Budget]])-1),IF(AND(Skat[[#This Row],[Aktuel periode]]<Skat[[#This Row],[Budget]],Skat[[#This Row],[Budget]]<0),-((Skat[[#This Row],[Aktuel periode]]/Skat[[#This Row],[Budget]])-1),(Skat[[#This Row],[Aktuel periode]]/Skat[[#This Row],[Budget]])-1))),\"-\")","v":{"v":0,"d":"0.00%"}}]
[null,"Samlet skat",null,{"$f":"SUBTOTAL(109,Skat[Forudgående periode])","v":0},{"$f":"SUBTOTAL(109,Skat[Budget])","v":0},{"$f":"SUBTOTAL(109,Skat[Aktuel periode])","v":0},{"$f":"IFERROR(SUBTOTAL(109,Skat[Aktuel periode som % af salg]),\"-\")","v":{"v":0,"d":"0.00%"}},{"$f":"SUBTOTAL(109,Skat[% ændret ift. forudgående periode])","v":{"v":0,"d":"0.00%"}},{"$f":"SUBTOTAL(109,Skat[% ændret ift. budget])","v":{"v":0,"d":"0.00%"}}]

{"sheet":"Kategorier","index":5,"n_rows":8,"n_cols":2,"rows_kept":8}
[null,"Kategorier"]
[null,"Salgsomsætning"]
[null,"Salgsomkostninger"]
[null,"Indtægter"]
[null,"Salg og marketing"]
[null,"Forskning og udvikling"]
[null,"Generelt og administrativt"]
[null,"Skat"]